Workbook

Sheet Justification
B1: DFMS Vehicle Justification Calculator
B2: A Vehicle Lifecycle Cost Comparison Tool
B4: Vehicle Acquisition / Usage Data
B6: Enter Acquisition Cost | E6: 19146 | O6: 1 | P6: =E14*O6 -> 0.7
B7: Enter Annual Finance Percentage | E7: 0 | O7: 10 | P7: =E14*O7 -> 7 | Q7: =D27*O7 -> 3.584196364
B8: Enter Fuel Price per Gallon | E8: 2.99 | O8: 100 | P8: =E14*O8 -> 70 | Q8: =D27*O8 -> 35.84196364
B9: Enter Annual Operational Cost | E9: =127.32*12 -> 1527.84 | O9: 500 | P9: =E14*O9 -> 350 | Q9: =D27*O9 -> 179.2098182
B10: Enter the Estimated MPG | E10: 25 | O10: 1000 | P10: =E14*O10 -> 700 | Q10: =D27*O10 -> 358.4196364
B11: Enter Expected Monthly Mileage | E11: 1486 | O11: 1500 | P11: =E14*O11 -> 1050 | Q11: =D27*O11 -> 537.6294545
B12: Enter One-way Commuting Distance | E12: 10 | O12: 2000 | P12: =E14*O12 -> 1400 | Q12: =D27*O12 -> 716.8392727
B13: Enter Commuting Days Per Week | E13: 5 | O13: 2500 | P13: =E14*O13 -> 1750 | Q13: =D27*O13 -> 896.0490909
B14: Standard IRS Reimbursement Rate | E14: 0.7 | F14: =IF(E14<D27,"Use Reimburstment","") ->  | O14: 3000 | P14: =E14*O14 -> 2100 | Q14: =D27*O14 -> 1075.258909
O15: 3500 | P15: =E14*O15 -> 2450 | Q15: =D27*O15 -> 1254.468727
O16: 4000 | P16: =E14*O16 -> 2800 | Q16: =D27*O16 -> 1433.678545
B17: Summary | O17: 4500 | P17: =E14*O17 -> 3150 | Q17: =D27*O17 -> 1612.888364
O18: 5000 | P18: =E14*O18 -> 3500 | Q18: =D27*O18 -> 1792.098182
B19: Accumulated Mileage | D19: =SUM(Actual_Mileage) -> 110000 | O19: 5500 | P19: =E14*O19 -> 3850 | Q19: =D27*O19 -> 1971.308
B20: Life Cycle Max Months | D20: =Actual_Months -> 74 | O20: 6000 | P20: =E14*O20 -> 4200 | Q20: =D27*O20 -> 2150.517818
B21: Years in Service | D21: =D20/12 -> 6.166666667 | O21: 6500 | P21: =E14*O21 -> 4550 | Q21: =D27*O21 -> 2329.727636
B22: Operational Cost | D22: =E9/12*D20 -> 9421.68 | E22: =E9/12 -> 127.32 | F22: Per Month | O22: 7000 | P22: =E14*O22 -> 4900 | Q22: =D27*O22 -> 2508.937455
B23: Fixed Cost | D23: =('Life Cycle Cost Analysis'!C37) -> 26270.16 | E23: =D23/D19 -> 0.2388196364 | F23: Per Mile | O23: 7500 | P23: =E14*O23 -> 5250 | Q23: =D27*O23 -> 2688.147273
B24: Fuel Cost | D24: ='Life Cycle Cost Analysis'!C42 -> 13156 | E24: =D24/D19 -> 0.1196 | F24: Per Mile | O24: 8000 | P24: =E14*O24 -> 5600 | Q24: =D27*O24 -> 2867.357091
B25: Total Lifetime cost | D25: ='Life Cycle Cost Analysis'!C48 -> 39426.16 | E25: =D25/D21 -> 6393.431351 | F25: Per Year | O25: 8500 | P25: =E14*O25 -> 5950 | Q25: =D27*O25 -> 3046.566909
B26: Monthly Cost | D26: ='Life Cycle Cost Analysis'!C50 -> 532.7859459 | E26: =D26/20 -> 26.6392973 | F26: Daily Rate | O26: 9000 | P26: =E14*O26 -> 6300 | Q26: =D27*O26 -> 3225.776727
B27: Total Cost Per Mile | D27: ='Life Cycle Cost Analysis'!C49 -> 0.3584196364 | O27: 9500 | P27: =E14*O27 -> 6650 | Q27: =D27*O27 -> 3404.986545
O28: 10000 | P28: =E14*O28 -> 7000 | Q28: =D27*O28 -> 3584.196364
F29: =IF(E14<D27,"At this accquisition cost and ultilzation level a Commonwealth-Owned Vehicle would NOT be Economical "," At this Utlization Level - it is more economical to provide a Commonwealth-Owned Vehicle" ) -> At this Utlization Level - it is more economical to provide a Commonwealth-Owned Vehicle
B33: For Commuting Approval Only
C35: Monthly Cost of Commuting | H35: Lifetime Commuting Use Costs
B36: Monthly | C36: Commuting Mileage | E36: =E12*2*E13*4 -> 400 | G36: Fixed Cost | I36: =E38*D20 -> 10612.69448
B37: Personal | C37: Commuting Use | E37: =E36/E11 -> 0.269179004 | G37: Fuel Cost | I37: =D24*E37 -> 3541.318977
B38: Monthly | C38: Commuting Cost | E38: =(D25*E37)/D20 -> 143.4147903 | G38: Total Commuting Cost | I38: =E38*D20 -> 10612.69448
C40: Monthly Cost of Business | H40: Lifetime Business Use costs
B41: Monthly | C41: Business Mileage | E41: =E11-E36 -> 1086 | G41: Fixed Cost | I41: =D23-I36 -> 15657.46552
B42: Commonwealth | C42: Business Use | E42: =(E11-E36)/E11 -> 0.730820996 | G42: Fuel Cost | I42: =D24-I37 -> 9614.681023
B43: Monthly | C43: Business Cost | E43: =(D25-I38)/D20 -> 389.3711557 | G43: Total Business Cost | I43: =SUM(I41:I42) -> 25272.14654
F45: =IF(E42<75%,"Commuting Assignment not Approved .","Commuting Use Can be Approved ") -> Commuting Assignment not Approved .

Sheet Life Cycle Cost Analysis (hidden)
A1: Lifecycle Cost Analysis - Employer vs. Employee Provided
A2: Variable Data | D2: Derived Values | G2: FORMULA/SOURCE:
A3: Vehicle:
A4: Target Months in Service: | C4: 84 | D4: Actual Months: | E4: =INT(MIN((MIN((Max_Miles/Monthly_Miles),Max_Months)),Max_Months)) -> 74 | G4: Actual Months in Service given the Maximum Replacement Mileage and Mileage-per-Month set by policy
A5: Target Replacement Mileage: | C5: 110000 | D5: Actual Mileage: | E5: =INT(MIN((MIN((Monthly_Miles*Max_Months),Max_Miles)),Max_Miles)) -> 110000 | G5: Actual Miles at Replacement given the Maximum Service Months and Mileage-per-Month set by policy
A6: Expected Mileage-per-Month: | C6: ='Justification '!E11 -> 1486 | G6: Expected Average Miles-per-Month driven; Average Daily Miles driven given a five-day work week and the Mileage-per-Month entered
A7: Lease Management Fee (%): | C7: 0 | G7: Quoted by leasing company (enter either a % or flat rate--enter "0" in the one not used)
A8: Lease Management Fee (Flat Rate): | C8: 0 | G8: Quoted by leasing company (enter either a % or flat rate--enter "0" in the one not used)
A9: Book Depreciation Rate: | C9: 0.0104 | G9: Mutually agreed to with leasing company - Or from actual experience
A10: Projected end of term resale value | C10: 0.12 | G10: Resale Value of the vehicle at end of Term - enter a % from 0 to 20 based on actual auction experience (not dealer blue book values)
A11: City Miles-per-Gallon | C11: ='Justification '!E10 -> 25 | G11: Value from EPA Estimated City Mileage or actual experience
A12: Estimated Personal Use: | C12: 0 | G12: Percentage of personal use which employee will reimburse employer (enter 0 if you will not charge for personal use)
C14: Employer | D14: Employee
A15: Acquisition Cost
B16: Factory Invoice Price | C16: ='Justification '!E6 -> 19146 | D16: 17000 | E16: Price Obtained from lessor, dealer or alternate source
B17: Dealer Holdback Adjustment | E17: Obtained from dealer or alternate source - incentive portion normally given to dealer
B18: Mfg. Additional Incentive | D18: 0 | E18: Obtained from dealer or alternate source - added incentive for early order, etc.
B19: Fleet Incentive | E19: Obtained from lessor, dealer or alternate source - special fleet discounts
B20: Down Payment | D20: 1500 | E20: Down Payment
B21: Net Acquisition Cost | C21: =SUM(C16:C19) -> 19146 | D21: =D16-D20 -> 15500 | E21: Factory Invoice Price - Dealer Holdback Adjustment - Mfg.. Additional Incentive - Fleet Incentives [or value from leasing company]
A22: Fixed Costs
B23: Actual Depreciation | C23: =C21-C24 -> 16848.48 | D23: =D21-D24 -> 13640 | E23: Net Acquisition Cost - Projected Resale Price
B24: Projected Resale Price | C24: =Cap_Cost_A*C10 -> 2297.52 | D24: =Cap_Cost_B*C10 -> 1860 | E24: Uses Calculated resale Value - or enter Finance or lease guide or actual fleet history for months in service with mileage adjustment
B25: Interest | C25: =SUM(C27:C33) -> 0 | D25: =SUM(D27:D33) -> 2258.455996 | E25: Total of annual interest from declining balance method/car loan from "Loan Payment Schedule" worksheet
B26: Annual Interest Rate | C26: ='Justification '!E7 -> 0 | D26: 0.04 | E26: Annual cost of money or Interest rate
B27: Year 1 | C27: =(C21*Interest_Factor_Yr1)*Total_Months_Yr1 -> 0 | D27: =Employee_Y1 -> 584.3614847 | E27: (Net Vehicle Cost * Year 1 Interest Factor) * Year 1 Total Months) [see table bottom of sheet] or Interest from Loan Payment Schedule
B28: Year 2 | C28: =(C21*Interest_Factor_Yr2)*IF(Total_Months_Yr2=0,0,(Total_Months_Yr2-12)) -> 0 | D28: =Employee_Yr2 -> 504.5880569 | E28: (Net Vehicle Cost * Year 2 Interest Factor) * Year 2 Total Months) [see table in lower left of sheet]or Interest from Load Payment Schedule
B29: Year 3 | C29: =(C21*Interest_Factor_Yr3)*IF(Total_Months_Yr3=0,0,(Total_Months_Yr3-24)) -> 0 | D29: =Employee_Yr3 -> 421.5645365 | E29: (Net Vehicle Cost * Year 3 Interest Factor) * Year 3 Total Months) [see table in lower left of sheet]/Interest from Load Payment Schedule
B30: Year 4 | C30: =(C21*Interest_Factor_Yr4)*IF(Total_Months_Yr4=0,0,(Total_Months_Yr4-36)) -> 0 | D30: =Employee_Yr4 -> 335.1585098 | E30: (Net Vehicle Cost * Year 4 Interest Factor) * Year 4 Total Months) [see table in lower left of sheet]/Interest from Load Payment Schedule
B31: Year 5 | C31: =(C21*Interest_Factor_Yr5)*IF(Total_Months_Yr5=0,0,(Total_Months_Yr5-48)) -> 0 | D31: =Employee_Yr5 -> 245.2321683 | E31: (Net Vehicle Cost * Year 5 Interest Factor) * Year 5 Total Months) [see table in lower left of sheet]/Interest from Load Payment Schedule
B32: Year 6 | C32: =(C21*Interest_Factor_Yr6)*IF(Total_Months_Yr6=0,0,(Total_Months_Yr6-60)) -> 0 | D32: =Employee_Yr6 -> 151.6420888 | E32: (Net Vehicle Cost * Year 6 Interest Factor) * Year 6 Total Months) [see table in lower left of sheet]/Interest from Load Payment Schedule
B33: Year 7 | C33: =(C23*Interest_Factor_Yr7)*IF(Total_Months_Yr7=0,0,(Total_Months_Yr7-72)) -> 0 | D33: =Employee_Yr7 -> 15.90915104 | E33: (Net Vehicle Cost * Year 7 Interest Factor) * Year 7 Total Months) [see table in lower left of sheet]/Interest from Load Payment Schedule
B34: Management Fee | C34: =IF(Management_Fee<>0,(Management_Fee*C21)*Actual_Months,Flat_Rate) -> 0 | E34: Management Fee * Net Acquisition Cost * Actual Months in Service or Flat Rate Management Fee
B35: Mfg.. Additional Incentive | C35: 0 | D35: 0 | E35: Incentive paid directly to the fleet
B36: Insurance | C36: ='Justification '!D22 -> 9421.68 | D36: =C36 -> 9421.68 | E36: Life time Insurance cost (annual rate/12*Actual Months)
B37: Total Fixed Cost: | C37: =C23+C25+C34+C35+C36 -> 26270.16 | D37: =D23+D25+D34+D35+D36 -> 25320.136 | E37: Actual Depreciation + Interest + Management Fee + Build Time Delay Cost
A38: Operating Costs
B39: Total Fuel Cost | C39: =(Actual_Mileage/City_MPG)*C40 -> 13156 | D39: =(Actual_Mileage/City_MPG)*D40 -> 10692 | E39: (Actual Miles/Estimated Miles-per-Gallon) * Fuel Cost-per-Gallon
B40: Cost of Fuel | C40: ='Justification '!E8 -> 2.99 | D40: 2.43 | E40: Average price of fuel per gallon
B41: Total Maintenance Cost | C41: 0 | D41: =Employee_Maint -> 8811.5 | E41: Values from "Maintenance Estimate" worksheet
B42: Total Operating Cost: | C42: =C39+C41 -> 13156 | D42: =D39+D41 -> 19503.5 | E42: Total Fuel Cost + Total Maintenance Cost
A43: Personal Use Costs
B44: Fixed Cost for Personal Use | C44: =C37*Personal_Use -> 0 | D44: =D37*Personal_Use -> 0 | E44: Total Fixed Cost * Estimated Personal Use
B45: Operating Cost for Personal Use | C45: =C42*Personal_Use -> 0 | D45: =D42*Personal_Use -> 0 | E45: Total Operating Cost * Estimated Personal Use
B46: Total Personal Use Cost | C46: =SUM(C44:C45) -> 0 | D46: =SUM(D44:D45) -> 0 | E46: Fixed Cost for Personal Use + Operating Cost for Personal Use (amount to be reimbursed to employer by employee)
A48: Total Lifecycle Cost: | C48: =C42+C37 -> 39426.16 | D48: =D42+D37 -> 44823.636 | E48: Total Fixed Cost + Total Operating Cost
A49: Lifecycle Cost-per-Mile: | C49: =C48/Actual_Mileage -> 0.3584196364 | D49: =D48/Actual_Mileage -> 0.4074876 | E49: Total Lifecycle Cost / Actual Miles
A50: Lifecycle Cost-per-Month | C50: =C48/Actual_Months -> 532.7859459 | D50: =D48/Actual_Months -> 605.7248108 | E50: Total Lifecycle Cost / Actual Months
A52: Reimbursement Rates - Fixed and Operating
B53: Break Even | E53: Fixed Recovery Cost to Break Even for use of vehicle
B54: County Fixed Monthly | C54: =(C37-C44)/Actual_Months -> 355.0021622 | E54: Monthly Fixed Cost to County - Paid by County
B55: County Operating Per Mile | C55: =(C42-C45)/Actual_Mileage -> 0.1196 | E55: Per mile Operating cost for Business use paid by County
B56: Personal Fixed Monthly | C56: =C44/Actual_Months -> 0 | E56: Fixed Recovery Cost paid by Employee to County for personal use
B57: Personal Operating Per Mile | C57: =C45/Actual_Mileage -> 0 | E57: Per mile Operating recovery cost Paid by Employee to the County for personal use
B58: Total OC per mile | C58: =C55+C57 -> 0.1196 | D58: ='Loan Payment Schedule'!F6 -> 211.8664982 | E58: Employees personal Monthly Loan payment
A59: Equitable for Employee | E59: Reimbursements to an employee - when employer covers employees actual expenditures for the official business use
B60: Monthly | D60: =(D37-D44)/Actual_Months -> 342.1639999 | E60: Monthly fixed cost paid to employee for use of personal car on County business
B61: Per Mile | D61: =(D42-D45)/Actual_Mileage -> 0.1773045455 | E61: Per mile Operating Cost paid to employee per official mile driven
B62: Total Extra Cost | C62: =(D48-D46)-(C48-C46) -> 5397.475996 | E62: Amount of added expense to employer to provide equitable reimbursement over the cost of providing a vehicle
A64: Lease Summary
B65: Book Depreciation (Reserve) | C65: =C21*(Depreciation_Rate*Actual_Months) -> 14734.7616 | E65: Actual Purchase Price * (Book Depreciation Rate * Actual Months)
B66: Total of Lease Payments | C66: =C65+C25+C34 -> 14734.7616 | E66: Reserve For Depreciation + Interest + Management Fee (total cash outlay to leasing company to cover capitalized cost)
B67: Depreciation Adjustment (TRAC) | C67: =(C21-C65)-C24 -> 2113.7184 | E67: Net Acquisition Cost - Book Depreciation - Projected Resale Price (Terminal Rental Adjustment Clause)
A69: Annual Interest Calculations - Step Rate Formula
B70: Holding Period | C70: Total Months | D70: Book Value | E70: Interest Factor
B71: Year 1 | C71: =IF(C70=0,0,(MIN(IF(OR(Actual_Months>12,Actual_Months<>C70),MIN(Actual_Months,12),0),12))) -> 12 | D71: =IF(Total_Months_Yr1=0,0,1-(((1-1)+(12-1))/2)*Depreciation_Rate) -> 0.9428 | E71: =D71*(Employer_Lease_IR/12) -> 0 | F71: Book Value=1-(((1-1)+(12-1))/2)*Book Depreciation Rate; Interest Factor=Book Value*Monthly Interest
B72: Year 2 | C72: =IF(C71=0,0,(MIN(IF(OR(Actual_Months>24,Actual_Months<>C71),MIN(Actual_Months,24),0),24))) -> 24 | D72: =IF(Total_Months_Yr2=0,0,1-(((13-1)+(24-1))/2)*Depreciation_Rate) -> 0.818 | E72: 0 | F72: Book Value=1-(((13-1)+(24-1))/2)*Book Depreciation Rate; Interest Factor=Book Value*Monthly Interest
B73: Year 3 | C73: =IF(C72=0,0,(MIN(IF(OR(Actual_Months>36,Actual_Months<>C72),MIN(Actual_Months,36),0),36))) -> 36 | D73: =IF(Total_Months_Yr3=0,0,1-(((25-1)+(36-1))/2)*Depreciation_Rate) -> 0.6932 | E73: 0 | F73: Book Value=1-(((25-1)+(36-1))/2)*Book Depreciation Rate; Interest Factor=Book Value*Monthly Interest
B74: Year 4 | C74: =IF(C73=0,0,(MIN(IF(OR(Actual_Months>48,Actual_Months<>C73),MIN(Actual_Months,48),0),48))) -> 48 | D74: =IF(Total_Months_Yr4=0,0,1-(((37-1)+(48-1))/2)*Depreciation_Rate) -> 0.5684 | E74: 0 | F74: Book Value=1-(((37-1)+(48-1))/2)*Book Depreciation Rate; Interest Factor=Book Value*Monthly Interest
B75: Year 5 | C75: =IF(C74=0,0,(MIN(IF(OR(Actual_Months>60,Actual_Months<>C74),MIN(Actual_Months,60),0),60))) -> 60 | D75: =IF(Total_Months_Yr5=0,0,1-(((49-1)+(60-1))/2)*Depreciation_Rate) -> 0.4436 | E75: 0 | F75: Book Value=1-(((49-1)+(60-1))/2)*Book Depreciation Rate; Interest Factor=Book Value*Monthly Interest
B76: Year 6 | C76: =IF(C75=0,0,(MIN(IF(OR(Actual_Months>72,Actual_Months<>C75),MIN(Actual_Months,72),0),72))) -> 72 | D76: =IF(Total_Months_Yr5=0,0,1-(((61-1)+(72-1))/2)*Depreciation_Rate) -> 0.3188 | E76: 0 | F76: Book Value=1-(((61-1)+(72-1))/2)*Book Depreciation Rate; Interest Factor=Book Value*Monthly Interest
B77: Year 7 | C77: =IF(C76=0,0,(MIN(IF(OR(Actual_Months>84,Actual_Months<>C76),MIN(Actual_Months,84),0),84))) -> 74 | D77: =IF(Total_Months_Yr5=0,0,1-(((73-1)+(84-1))/2)*Depreciation_Rate) -> 0.194 | E77: 0 | F77: Book Value=1-(((73-1)+(84-1))/2)*Book Depreciation Rate; Interest Factor=Book Value*Monthly Interest

Sheet Maintenance Estimate (hidden)
A1: Vehicle Maintenance Estimate
B2: Employer | C2: Employee
A3: Mechanical Hourly Labor Rate | B3: 68 | C3: 85
A4: Parts Mark-up (Jobber) | B4: 0.15 | C4: 0.4
A5: Accumlated Mileage | B5: =Actual_Mileage -> 110000
B6: Mileage | C6: Labor | D6: Parts | F6: Employer | I6: Employee
A7: Service/Repair | B7: Interval | C7: Hours | D7: (Jobber) | E7: Freq. | F7: Labor | G7: Parts | H7: Total | I7: Labor | J7: Parts | K7: Total
A8: PM A with safety inspection | B8: 6000 | C8: 1 | D8: 15 | E8: =INT(Actual_Mileage/'Maintenance Estimate'!B8) -> 18 | F8: =((E8*C8)*Employer_Labor) -> 1224 | G8: =(E8*D8)+(E8*D8*Employer_PartsMU) -> 310.5 | H8: =SUM(F8:G8) -> 1534.5 | I8: =((C8*E8)*Employee_Labor) -> 1530 | J8: =(D8*E8)+(D8*E8*Employee_PartsMU) -> 378 | K8: =SUM(I8:J8) -> 1908
A9: PM B (A+trans svc) | B9: 50000 | C9: 2.25 | D9: 35 | E9: =INT(Actual_Mileage/'Maintenance Estimate'!B9) -> 2 | F9: =((E9*C9)*Employer_Labor) -> 306 | G9: =(E9*D9)+(E9*D9*Employer_PartsMU) -> 80.5 | H9: 386.5 | I9: =((C9*E9)*Employee_Labor) -> 382.5 | J9: =(D9*E9)+(D9*E9*Employee_PartsMU) -> 98 | K9: 480.5
A10: PM C (A+tune up) | B10: 80000 | C10: 3 | D10: 85 | E10: =INT(Actual_Mileage/'Maintenance Estimate'!B10) -> 1 | F10: 204 | G10: 97.75 | H10: 301.75 | I10: 255 | J10: 119 | K10: 374
A11: air conditioning | B11: 80000 | C11: 4 | D11: 250 | E11: =INT(Actual_Mileage/'Maintenance Estimate'!B11) -> 1 | F11: 272 | G11: 287.5 | H11: 559.5 | I11: 340 | J11: 350 | K11: 690
A12: alternator | B12: 70000 | C12: 1.5 | D12: 60 | E12: =INT(Actual_Mileage/'Maintenance Estimate'!B12) -> 1 | F12: 102 | G12: 69 | H12: 171 | I12: 127.5 | J12: 84 | K12: 211.5
A13: battery | B13: 60000 | C13: 0.5 | D13: 50 | E13: =INT(Actual_Mileage/'Maintenance Estimate'!B13) -> 1 | F13: 34 | G13: 57.5 | H13: 91.5 | I13: 42.5 | J13: 70 | K13: 112.5
A14: brakes - pads, disc, drum | B14: 30000 | C14: 2 | D14: 40 | E14: =INT(Actual_Mileage/'Maintenance Estimate'!B14) -> 3 | F14: 408 | G14: 138 | H14: 546 | I14: 510 | J14: 168 | K14: 678
A15: brakes - master cylinder, calipers, ABS | B15: 80000 | C15: 4 | D15: 200 | E15: =INT(Actual_Mileage/'Maintenance Estimate'!B15) -> 1 | F15: 272 | G15: 230 | H15: 502 | I15: 340 | J15: 280 | K15: 620
A16: cooling system | B16: 100000 | C16: 2 | D16: 30 | E16: =INT(Actual_Mileage/'Maintenance Estimate'!B16) -> 1 | F16: 136 | G16: 34.5 | H16: 170.5 | I16: 170 | J16: 42 | K16: 212
A17: engine | B17: 180000 | C17: 5 | D17: 400 | E17: =INT(Actual_Mileage/'Maintenance Estimate'!B17) -> 0 | F17: 0 | G17: 0 | H17: 0 | I17: 0 | J17: 0 | K17: 0
A18: emissions | B18: 60000 | C18: 3 | D18: 100 | E18: =INT(Actual_Mileage/'Maintenance Estimate'!B18) -> 1 | F18: 204 | G18: 115 | H18: 319 | I18: 255 | J18: 140 | K18: 395
A19: exhaust | B19: 120000 | C19: 3 | D19: 200 | E19: =INT(Actual_Mileage/'Maintenance Estimate'!B19) -> 0 | F19: 0 | G19: 0 | H19: 0 | I19: 0 | J19: 0 | K19: 0
A20: front end/suspension | B20: 100000 | C20: 4 | D20: 200 | E20: =INT(Actual_Mileage/'Maintenance Estimate'!B20) -> 1 | F20: 272 | G20: 230 | H20: 502 | I20: 340 | J20: 280 | K20: 620
A21: tires | B21: 40000 | C21: 1.5 | D21: 200 | E21: =INT(Actual_Mileage/'Maintenance Estimate'!B21) -> 2 | F21: 204 | G21: 460 | H21: 664 | I21: 255 | J21: 560 | K21: 815
A22: transmission | B22: 130000 | C22: 0 | D22: 1600 | E22: =INT(Actual_Mileage/'Maintenance Estimate'!B22) -> 0 | F22: 0 | G22: 0 | H22: 0 | I22: 0 | J22: 0 | K22: 0
A23: miscellaneous | B23: 20000 | C23: 3 | D23: 60 | E23: =INT(Actual_Mileage/'Maintenance Estimate'!B23) -> 5 | F23: 1020 | G23: 345 | H23: 1365 | I23: 1275 | J23: 420 | K23: 1695
A24: Total: | H24: =SUM(H8:H23) -> 7113.25 | K24: =SUM(K8:K23) -> 8811.5

Sheet Insurance Rates (hidden)
A1: Insurance Rates
C2: Enter the Annual Insurance cost from the table below on Justification Sheet cell I8
A4: Current Year Rate Multiplier | D4: 1.4 | E4: Assigned by Risk Management
A6: Type | B6: AUTO | D6: LIGHT | F6: MEDIUM | H6: LARGE | J6: TRAILERS
A7: Class Code | B7: 1300 -1399 | D7: 1400-2799 | F7: 3000-5999 | H7: 6000-8999 | J7: 9000
B8: AUTOS | C8: AUTOS | D8: TRUCKS | E8: TRUCKS | F8: TRUCKS | G8: TRUCKS | H8: TRUCKS | I8: TRUCKS
A9: Age | B9: <5 YRS | C9: >5 YRS | D9: <5 YRS | E9: >5 YRS | F9: <5 YRS | G9: >5 YRS | H9: <5 YRS | I9: >5 YRS
A10: Base Rates | B10: 747 | C10: 726 | D10: 704 | E10: 633 | F10: 864 | G10: 831 | H10: 1785 | I10: 1705 | J10: 65
A11: Annual Cost | B11: =B10*Rate -> 1045.8 | C11: 1016.4 | D11: 985.6 | E11: 886.2 | F11: 1209.6 | G11: 1163.4 | H11: 2499 | I11: 2387 | J11: 91
A12: Life Cost | B12: =B11/12*Actual_Months -> 6449.1 | C12: 6267.8 | D12: 6077.866667 | E12: 5464.9 | F12: 7459.2 | G12: 7174.3 | H12: 15410.5 | I12: 14719.83333 | J12: 561.1666667

Sheet Loan Payment Schedule (hidden)
C2: Employee Loan Payment Schedule
C3: Calculations for 84 month loan with | F3: ='Life Cycle Cost Analysis'!D20 -> 1500 | G3: Down payment | H3: =F3 -> 1500
E4: Loan Amount | F4: ='Life Cycle Cost Analysis'!D21 -> 15500 | G4: Principal | H4: =SUM(D10:D93) -> 15500
E5: Annual Percentage Rate: | F5: =Employee_Loan_IR -> 0.04 | G5: Total Interest | H5: =SUM(F10:F93) -> 2296.78585
E6: Monthly Payment: | F6: =PMT(Employee_Loan_IR/12,84,Cap_Cost_B,0)*-1 -> 211.8664982 | G6: Total P+ I = | H6: =H4+H5 -> 17796.78585
G7: Total cost | H7: =H3+H6 -> 19296.78585
C8: Month | D8: Principle | E8: Remaining | F8: Interest | G8: Interest | H8: Annual
E9: Balance | G9: Paid | H9: Interest
C10: 1 | D10: =PPMT(Employee_Loan_IR/12,C10,84,Cap_Cost_B,0)*-1 -> 160.1998315 | E10: =SUM(D11:D93) -> 15339.80017 | F10: =IPMT(Employee_Loan_IR/12,C10,84,Cap_Cost_B,0)*-1 -> 51.66666667 | G10: =IF(C10>Actual_Months,0,F10) -> 51.66666667
C11: 2 | D11: 160.733831 | E11: =SUM(D12:D94) -> 15179.06634 | F11: 51.13266723 | G11: =IF(C11>Actual_Months,0,F11) -> 51.13266723
C12: 3 | D12: 161.2696104 | E12: 15017.79673 | F12: 50.59688779 | G12: 50.59688779
C13: 4 | D13: 161.8071758 | E13: 14855.98955 | F13: 50.05932242 | G13: 50.05932242
C14: 5 | D14: 162.346533 | E14: 14693.64302 | F14: 49.51996517 | G14: 49.51996517
C15: 6 | D15: 162.8876882 | E15: 14530.75533 | F15: 48.97881006 | G15: 48.97881006
C16: 7 | D16: 163.4306471 | E16: 14367.32468 | F16: 48.4358511 | G16: 48.4358511
C17: 8 | D17: 163.9754159 | E17: 14203.34927 | F17: 47.89108228 | G17: 47.89108228
C18: 9 | D18: 164.5220007 | E18: 14038.82727 | F18: 47.34449756 | G18: 47.34449756
C19: 10 | D19: 165.0704073 | E19: 13873.75686 | F19: 46.79609089 | G19: 46.79609089
C20: 11 | D20: 165.620642 | E20: 13708.13622 | F20: 46.2458562 | G20: 46.2458562
C21: 12 | D21: 166.1727108 | E21: 13541.96351 | F21: 45.69378739 | G21: 45.69378739 | H21: =SUM(G10:G21) -> 584.3614847
C22: 13 | D22: 166.7266199 | E22: 13375.23689 | F22: 45.13987835 | G22: 45.13987835
C23: 14 | D23: 167.2823753 | E23: 13207.95451 | F23: 44.58412295 | G23: 44.58412295
C24: 15 | D24: 167.8399832 | E24: 13040.11453 | F24: 44.02651504 | G24: 44.02651504
C25: 16 | D25: 168.3994498 | E25: 12871.71508 | F25: 43.46704843 | G25: 43.46704843
C26: 17 | D26: 168.9607813 | E26: 12702.7543 | F26: 42.90571693 | G26: 42.90571693
C27: 18 | D27: 169.5239839 | E27: 12533.23031 | F27: 42.34251432 | G27: 42.34251432
C28: 19 | D28: 170.0890638 | E28: 12363.14125 | F28: 41.77743438 | G28: 41.77743438
C29: 20 | D29: 170.6560274 | E29: 12192.48522 | F29: 41.21047083 | G29: 41.21047083
C30: 21 | D30: 171.2248808 | E30: 12021.26034 | F30: 40.64161741 | G30: 40.64161741
C31: 22 | D31: 171.7956304 | E31: 11849.46471 | F31: 40.0708678 | G31: 40.0708678
C32: 23 | D32: 172.3682825 | E32: 11677.09643 | F32: 39.4982157 | G32: 39.4982157
C33: 24 | D33: 172.9428435 | E33: 11504.15358 | F33: 38.92365476 | G33: 38.92365476 | H33: =SUM(G22:G33) -> 504.5880569
C34: 25 | D34: 173.5193196 | E34: 11330.63426 | F34: 38.34717861 | G34: 38.34717861
C35: 26 | D35: 174.0977173 | E35: 11156.53655 | F35: 37.76878088 | G35: 37.76878088
C36: 27 | D36: 174.6780431 | E36: 10981.8585 | F36: 37.18845516 | G36: 37.18845516
C37: 28 | D37: 175.2603032 | E37: 10806.5982 | F37: 36.60619501 | G37: 36.60619501
C38: 29 | D38: 175.8445042 | E38: 10630.7537 | F38: 36.021994 | G38: 36.021994
C39: 30 | D39: 176.4306526 | E39: 10454.32304 | F39: 35.43584566 | G39: 35.43584566
C40: 31 | D40: 177.0187547 | E40: 10277.30429 | F40: 34.84774348 | G40: 34.84774348
C41: 32 | D41: 177.6088172 | E41: 10099.69547 | F41: 34.25768097 | G41: 34.25768097
C42: 33 | D42: =PPMT(Employee_Loan_IR/12,C42,84,Cap_Cost_B,0)*-1 -> 178.2008466 | E42: 9921.494626 | F42: =IPMT(Employee_Loan_IR/12,C42,84,Cap_Cost_B,0)*-1 -> 33.66565158 | G42: 33.66565158
C43: 34 | D43: 178.7948495 | E43: 9742.699776 | F43: 33.07164875 | G43: 33.07164875
C44: 35 | D44: 179.3908323 | E44: 9563.308944 | F44: 32.47566592 | G44: 32.47566592
C45: 36 | D45: 179.9888017 | E45: 9383.320142 | F45: 31.87769648 | G45: 31.87769648 | H45: =SUM(G34:G45) -> 421.5645365
C46: 37 | D46: 180.5887644 | E46: 9202.731378 | F46: 31.27773381 | G46: 31.27773381
C47: 38 | D47: 181.190727 | E47: 9021.540651 | F47: 30.67577126 | G47: 30.67577126
C48: 39 | D48: 181.794696 | E48: 8839.745955 | F48: 30.07180217 | G48: 30.07180217
C49: 40 | D49: 182.4006784 | E49: 8657.345277 | F49: 29.46581985 | G49: 29.46581985
C50: 41 | D50: 183.0086806 | E50: 8474.336596 | F50: 28.85781759 | G50: 28.85781759
C51: 42 | D51: 183.6187096 | E51: 8290.717886 | F51: 28.24778865 | G51: 28.24778865
C52: 43 | D52: 184.2307719 | E52: 8106.487115 | F52: 27.63572629 | G52: 27.63572629
C53: 44 | D53: 184.8448745 | E53: 7921.64224 | F53: 27.02162372 | G53: 27.02162372
C54: 45 | D54: 185.4610241 | E54: 7736.181216 | F54: 26.40547413 | G54: 26.40547413
C55: 46 | D55: 186.0792275 | E55: 7550.101988 | F55: 25.78727072 | G55: 25.78727072
C56: 47 | D56: 186.6994916 | E56: 7363.402497 | F56: 25.16700663 | G56: 25.16700663
C57: 48 | D57: 187.3218232 | E57: 7176.080674 | F57: 24.54467499 | G57: 24.54467499 | H57: =SUM(G46:G57) -> 335.1585098
C58: 49 | D58: 187.9462293 | E58: 6988.134444 | F58: 23.92026891 | G58: 23.92026891
C59: 50 | D59: 188.5727167 | E59: 6799.561728 | F59: 23.29378148 | G59: 23.29378148
C60: 51 | D60: 189.2012925 | E60: 6610.360435 | F60: 22.66520576 | G60: 22.66520576
C61: 52 | D61: 189.8319634 | E61: 6420.528472 | F61: 22.03453478 | G61: 22.03453478
C62: 53 | D62: 190.4647366 | E62: 6230.063735 | F62: 21.40176157 | G62: 21.40176157
C63: 54 | D63: 191.0996191 | E63: 6038.964116 | F63: 20.76687912 | G63: 20.76687912
C64: 55 | D64: 191.7366178 | E64: 5847.227498 | F64: 20.12988039 | G64: 20.12988039
C65: 56 | D65: 192.3757399 | E65: 5654.851758 | F65: 19.49075833 | G65: 19.49075833
C66: 57 | D66: 193.0169924 | E66: 5461.834766 | F66: 18.84950586 | G66: 18.84950586
C67: 58 | D67: 193.6603823 | E67: 5268.174384 | F67: 18.20611589 | G67: 18.20611589
C68: 59 | D68: 194.3059169 | E68: 5073.868467 | F68: 17.56058128 | G68: 17.56058128
C69: 60 | D69: 194.9536033 | E69: 4878.914863 | F69: 16.91289489 | G69: 16.91289489 | H69: =SUM(G58:G69) -> 245.2321683
C70: 61 | D70: 195.6034487 | E70: 4683.311415 | F70: 16.26304954 | G70: 16.26304954
C71: 62 | D71: 196.2554602 | E71: 4487.055954 | F71: 15.61103805 | G71: 15.61103805
C72: 63 | D72: 196.909645 | E72: 4290.146309 | F72: 14.95685318 | G72: 14.95685318
C73: 64 | D73: 197.5660105 | E73: 4092.580299 | F73: 14.3004877 | G73: 14.3004877
C74: 65 | D74: =PPMT(Employee_Loan_IR/12,C74,84,Cap_Cost_B,0)*-1 -> 198.2245639 | E74: 3894.355735 | F74: =IPMT(Employee_Loan_IR/12,C74,84,Cap_Cost_B,0)*-1 -> 13.64193433 | G74: 13.64193433
C75: 66 | D75: 198.8853124 | E75: =SUM(D76:D158) -> 3695.470423 | F75: 12.98118578 | G75: =IF(C75>Actual_Months,0,F75) -> 12.98118578
C76: 67 | D76: 199.5482635 | E76: 3495.922159 | F76: 12.31823474 | G76: 12.31823474
C77: 68 | D77: 200.2134244 | E77: 3295.708735 | F77: 11.65307386 | G77: 11.65307386
C78: 69 | D78: 200.8808024 | E78: 3094.827932 | F78: 10.98569578 | G78: 10.98569578
C79: 70 | D79: 201.5504051 | E79: 2893.277527 | F79: 10.31609311 | G79: 10.31609311
C80: 71 | D80: 202.2222398 | E80: 2691.055287 | F80: 9.644258424 | G80: 9.644258424
C81: 72 | D81: 202.8963139 | E81: 2488.158973 | F81: 8.970184291 | G81: 8.970184291 | H81: =SUM(G70:G81) -> 151.6420888
C82: 73 | D82: 203.572635 | E82: 2284.586339 | F82: 8.293863245 | G82: 8.293863245
C83: 74 | D83: 204.2512104 | E83: 2080.335128 | F83: 7.615287795 | G83: 7.615287795
C84: 75 | D84: 204.9320478 | E84: 1875.40308 | F84: 6.934450427 | G84: 0
C85: 76 | D85: 205.6151546 | E85: 1669.787926 | F85: 6.251343601 | G85: 0
C86: 77 | D86: 206.3005385 | E86: 1463.487387 | F86: 5.565959752 | G86: 0
C87: 78 | D87: 206.9882069 | E87: 1256.49918 | F87: 4.878291291 | G87: 0
C88: 79 | D88: 207.6781676 | E88: 1048.821013 | F88: 4.188330601 | G88: 0
C89: 80 | D89: 208.3704282 | E89: 840.4505845 | F89: 3.496070042 | G89: 0
C90: 81 | D90: 209.0649963 | E90: 631.3855882 | F90: 2.801501948 | G90: 0
C91: 82 | D91: 209.7618796 | E91: 421.6237087 | F91: 2.104618627 | G91: 0
C92: 83 | D92: 210.4610859 | E92: 211.1626228 | F92: 1.405412362 | G92: 0
C93: 84 | D93: 211.1626228 | E93: 0 | F93: 0.7038754094 | G93: 0 | H93: =SUM(G82:G93) -> 15.90915104
C94: Total | H94: =SUM(H93,H81,H69,H57,H45,H33,H21) -> 2258.455996
